[Event "83rd Georgian Championship 2024"]
[Site "Tbilisi"]
[Date "2024.02.02"]
[Round "5.3"]
[White "Quparadze, Giga"]
[Black "Paichadze, Luka"]
[Result "1-0"]
[ECO "B15"]
[WhiteElo "2491"]
[BlackElo "2503"]
[Annotator "RC"]
[PlyCount "75"]
[EventDate "2024.01.29"]
[EventCountry "GEO"]
[SourceTitle "playchess.com"]
[Source "ChessBase"]
[SourceQuality "1"]
[TimeControl "5400+30"]

1. e4 {[%emt 0:00:02]} c6 {[%emt 0:00:08]} 2. d4 {[%emt 0:00:06]} d5 {[%emt 0:00:04]} 3. Nc3 {[%emt 0:00:04]} g6 {[%emt 0:01:05]} 4. e5 {[%emt 0:00:05]} Bg7 {[%emt 0:02:00]} 5. h3 {[%emt 0:00:07]} f6 {[%emt 0:11:29]} 6. f4 {[%emt 0:00:15]} c5 {[%emt 0:07:08]} 7. Nf3 {[%emt 0:04:55]} cxd4 {[%emt 0:01:07]} 8. Bb5+ {[%emt 0:00:15]} Kf7 {[%emt 0:08:17]} 9. Qxd4 {[%emt 0:00:25]} e6 {[%emt 0:03:42]} 10. Ne4 {[%emt 0:01:19]} a6 {[%emt 0:06:15]} 11. Ba4 {[%emt 0:02:50]} b5 {[%emt 0:06:37]} 12. Nd6+ {[%emt 0:00:13]} Kf8 {[%emt 0:00:04]} 13. Bb3 {[%emt 0:00:11]} Nc6 {[%emt 0:01:34]} 14. Qc5 {[%emt 0:00:03]} Nge7 {[%emt 0:00:59]} 15. f5 {[%emt 0:02:02]} gxf5 {[%emt 0:04:54]} 16. exf6 {[%emt 0:00:21]} Bxf6 {[%emt 0:00:03]} 17. Bh6+ {[%emt 0:01:09]} Kg8 {[%emt 0:05:24]} 18. g4 {[%emt 0:01:09]} Ne5 {[%emt 0:02:43]} 19. O-O-O {[%emt 0:04:29]} Nf7 {[%emt 0:07:08]} 20. Nxf7 {[%emt 0:13:30]} Kxf7 {[%emt 0:00:06]} 21. g5 {[%emt 0:00:07]} Bg7 {[%emt 0:00:48]} 22. Bxg7 {[%emt 0:00:05]} Kxg7 {[%emt 0:00:03]} 23. Qc3+ {[%emt 0:00:05]} Kg8 {[%emt 0:00:24]} 24. Rhe1 {[%emt 0:00:05]} a5 {[%emt 0:05:57]} 25. Qf6 {[%emt 0:03:24]} Qf8 {[%emt 0:05:13]} 26. Rxe6 {[%emt 0:00:07]} Bxe6 {[%emt 0:04:47]} 27. Qxe6+ {[%emt 0:00:58]} Qf7 {[%emt 0:00:00]} 28. Qd6 {[%emt 0:00:07]} Re8 {[%emt 0:01:49]} 29. Ne5 {[%emt 0:00:09]} Nc8 {[%emt 0:01:37]} 30. Nxf7 {[%emt 0:00:17]} Nxd6 {[%emt 0:00:03]} 31. Nxd6 {[%emt 0:00:07]} Rf8 {[%emt 0:00:32]} 32. Nxb5 {[%emt 0:00:28]} Kg7 {[%emt 0:00:08]} 33. Nd4 {[%emt 0:00:23]} Kg6 {[%emt 0:01:22]} 34. Bxd5 {[%emt 0:00:08]} f4 {[%emt 0:00:29]} 35. Be4+ {[%emt 0:00:22]} Kh5 {[%emt 0:00:07]} 36. Rg1 {[%emt 0:00:11]} Kh4 {[%emt 0:01:50]} 37. Nf3+ {[%emt 0:00:08]} Kh5 {[%emt 0:00:03]} 38. Rg4 {[%emt 0:00:05]} 1-0

[Event "83rd Georgian Championship 2024"]
[Site "Tbilisi"]
[Date "2024.02.02"]
[Round "5.5"]
[White "Gagunashvili, Merab"]
[Black "kiladze, Luka"]
[Result "1-0"]
[ECO "E62"]
[WhiteElo "2562"]
[BlackElo "2179"]
[Annotator "RC"]
[PlyCount "166"]
[EventDate "2024.01.29"]
[EventCountry "GEO"]
[SourceTitle "playchess.com"]
[Source "ChessBase"]
[SourceQuality "1"]
[TimeControl "5400+30"]

1. d4 {[%emt 0:00:04]} Nf6 {[%emt 0:00:08]} 2. c4 {[%emt 0:00:05]} g6 {[%emt 0:00:05]} 3. g3 {[%emt 0:00:14]} Bg7 {[%emt 0:00:06]} 4. Bg2 {[%emt 0:00:05]} d6 {[%emt 0:00:09]} 5. Nc3 {[%emt 0:00:37]} O-O {[%emt 0:00:11]} 6. Nf3 {[%emt 0:00:02]} Nc6 {[%emt 0:00:04]} 7. O-O {[%emt 0:00:13]} e5 {[%emt 0:00:03]} 8. d5 {[%emt 0:01:08]} Nb8 {[%emt 0:00:34]} 9. c5 {[%emt 0:00:47]} Na6 {[%emt 0:02:07]} 10. cxd6 {[%emt 0:01:50]} cxd6 {[%emt 0:01:01]} 11. Nd2 {[%emt 0:02:55]} Bd7 {[%emt 0:03:58]} 12. b3 {[%emt 0:03:03]} b5 {[%emt 0:04:46]} 13. Bb2 {[%emt 0:04:25]} Qe7 {[%emt 0:05:59]} 14. a3 {[%emt 0:02:58]} Rfc8 {[%emt 0:05:16]} 15. b4 {[%emt 0:02:34]} e4 {[%emt 0:03:31]} 16. e3 {[%emt 0:09:24]} Ng4 {[%emt 0:04:13]} 17. Rc1 {[%emt 0:08:28]} f5 {[%emt 0:03:19]} 18. Qb3 {[%emt 0:12:43]} Ne5 {[%emt 0:05:03]} 19. Ne2 {[%emt 0:02:58]} Rxc1 {[%emt 0:02:11]} 20. Nxc1 {[%emt 0:00:26]} Rc8 {[%emt 0:03:05]} 21. Ne2 {[%emt 0:01:41]} Nc7 {[%emt 0:07:41]} 22. Bd4 {[%emt 0:02:25]} Qf7 {[%emt 0:04:30]} 23. Bxa7 {[%emt 0:08:10]} Nxd5 {[%emt 0:05:45]} 24. Bd4 {[%emt 0:01:39]} Be6 {[%emt 0:01:33]} 25. Qd1 {[%emt 0:03:43]} g5 {[%emt 0:08:39]} 26. f3 {[%emt 0:19:18]} exf3 {[%emt 0:05:42]} 27. Nxf3 {[%emt 0:00:07]} Nxf3+ {[%emt 0:01:59]} 28. Bxf3 {[%emt 0:00:37]} Nf6 {[%emt 0:03:11]} 29. Nc3 {[%emt 0:01:14]} Bc4 {[%emt 0:01:01]} 30. Rf2 {[%emt 0:00:14]} Qe7 {[%emt 0:02:59]} 31. Bxf6 {[%emt 0:04:47]} Bxf6 {[%emt 0:03:00]} 32. Nd5 {[%emt 0:00:30]} Bxd5 {[%emt 0:01:42]} 33. Qxd5+ {[%emt 0:00:26]} Kg7 {[%emt 0:00:22]} 34. Qxf5 {[%emt 0:00:29]} Rc1+ {[%emt 0:02:56]} 35. Kg2 {[%emt 0:00:03]} Qe5 {[%emt 0:00:39]} 36. Qd7+ {[%emt 0:00:20]} Qe7 {[%emt 0:01:03]} 37. Qxb5 {[%emt 0:01:05]} Qxe3 {[%emt 0:00:51]} 38. Qd7+ {[%emt 0:01:18]} Qe7 {[%emt 0:00:08]} 39. Qxe7+ {[%emt 0:02:26]} Bxe7 {[%emt 0:00:05]} 40. Bd5 {[%emt 0:01:57]} Bf6 {[%emt 0:00:05]} 41. b5 {[%emt 0:01:41]} Bd4 {[%emt 0:01:27]} 42. Rf7+ {[%emt 0:00:32]} Kg6 {[%emt 0:00:25]} 43. Rd7 {[%emt 0:00:15]} g4 {[%emt 0:02:24]} 44. h4 {[%emt 0:00:52]} Kf5 {[%emt 0:01:06]} 45. Rxh7 {[%emt 0:00:36]} Rg1+ {[%emt 0:00:35]} 46. Kh2 {[%emt 0:00:01]} Rb1 {[%emt 0:02:04]} 47. Rh5+ {[%emt 0:00:42]} Kf6 {[%emt 0:00:04]} 48. a4 {[%emt 0:01:08]} Rb4 {[%emt 0:00:26]} 49. Rh6+ {[%emt 0:00:40]} Ke5 {[%emt 0:00:32]} 50. Rh5+ {[%emt 0:00:08]} Kf6 {[%emt 0:00:04]} 51. Rh6+ {[%emt 0:00:09]} Ke5 {[%emt 0:00:04]} 52. Bg2 {[%emt 0:00:39]} Rxa4 {[%emt 0:00:26]} 53. Rg6 {[%emt 0:00:16]} Rb4 {[%emt 0:01:45]} 54. Rxg4 {[%emt 0:00:42]} Bg1+ {[%emt 0:01:36]} 55. Kh3 {[%emt 0:00:04]} Rb3 {[%emt 0:00:14]} 56. h5 {[%emt 0:00:51]} Kf6 {[%emt 0:00:20]} 57. Bc6 {[%emt 0:00:50]} Rb2 {[%emt 0:00:21]} 58. Rg6+ {[%emt 0:00:08]} Ke7 {[%emt 0:00:04]} 59. Kg4 {[%emt 0:00:19]} Bd4 {[%emt 0:00:26]} 60. Kf5 {[%emt 0:00:20]} Be5 {[%emt 0:00:14]} 61. g4 {[%emt 0:01:37]} Rb4 {[%emt 0:00:13]} 62. Re6+ {[%emt 0:00:33]} Kf7 {[%emt 0:00:04]} 63. Bd5 {[%emt 0:00:43]} Kf8 {[%emt 0:00:34]} 64. Bc6 {[%emt 0:00:25]} Kf7 {[%emt 0:00:06]} 65. Bd5 {[%emt 0:00:34]} Kf8 {[%emt 0:00:03]} 66. Rg6 {[%emt 0:00:14]} Rxb5 {[%emt 0:00:41]} 67. Ke6 {[%emt 0:00:19]} Ra5 {[%emt 0:01:47]} 68. h6 {[%emt 0:00:14]} Ra7 {[%emt 0:00:28]} 69. Kf5 {[%emt 0:00:15]} Ra5 {[%emt 0:00:41]} 70. Rg8+ {[%emt 0:00:46]} Ke7 {[%emt 0:00:07]} 71. Ke4 {[%emt 0:01:19]} Ra4+ {[%emt 0:00:06]} 72. Kf5 {[%emt 0:00:23]} Ra5 {[%emt 0:00:56]} 73. Bb3 {[%emt 0:00:43]} Rb5 {[%emt 0:00:33]} 74. Ba4 {[%emt 0:00:30]} Ra5 {[%emt 0:00:22]} 75. Bb3 {[%emt 0:00:03]} Rb5 {[%emt 0:00:03]} 76. Ba4 {[%emt 0:00:14]} Ra5 {[%emt 0:00:03]} 77. Bd1 {[%emt 0:00:30]} Ra1 {[%emt 0:00:50]} 78. Bb3 {[%emt 0:00:17]} Ra3 {[%emt 0:00:41]} 79. Rb8 {[%emt 0:00:26]} Ra5 {[%emt 0:00:28]} 80. Rb7+ {[%emt 0:00:11]} Kf8 {[%emt 0:01:31]} 81. Ke6 {[%emt 0:00:54]} Kg8 {[%emt 0:00:57]} 82. g5 {[%emt 0:00:14]} Ra8 {[%emt 0:01:29]} 83. g6 {[%emt 0:00:17]} Kh8 {[%emt 0:00:42]} 1-0

[Event "83rd Georgian Championship 2024"]
[Site "Tbilisi"]
[Date "2024.02.04"]
[Round "6.1"]
[White "Kacharava, Nikolozi"]
[Black "kiladze, Luka"]
[Result "1/2-1/2"]
[ECO "B31"]
[WhiteElo "2523"]
[BlackElo "2179"]
[Annotator "RC"]
[PlyCount "104"]
[EventDate "2024.01.29"]
[EventCountry "GEO"]
[SourceTitle "playchess.com"]
[Source "ChessBase"]
[SourceQuality "1"]
[TimeControl "5400+30"]

1. e4 {[%emt 0:00:09]} c5 {[%emt 0:00:07]} 2. Nf3 {[%emt 0:00:24]} Nc6 {[%emt 0:00:04]} 3. Bb5 {[%emt 0:00:38]} g6 {[%emt 0:00:42]} 4. Bxc6 {[%emt 0:00:50]} dxc6 {[%emt 0:00:04]} 5. d3 {[%emt 0:00:41]} Bg7 {[%emt 0:00:09]} 6. h3 {[%emt 0:00:30]} e5 {[%emt 0:00:56]} 7. O-O {[%emt 0:01:05]} Qe7 {[%emt 0:00:05]} 8. a4 {[%emt 0:00:54]} Nf6 {[%emt 0:02:19]} 9. a5 {[%emt 0:01:13]} Nd7 {[%emt 0:01:29]} 10. Nc3 {[%emt 0:02:11]} Nf8 {[%emt 0:03:34]} 11. Be3 {[%emt 0:10:24]} Ne6 {[%emt 0:03:38]} 12. Nd2 {[%emt 0:03:24]} O-O {[%emt 0:04:04]} 13. Na4 {[%emt 0:03:58]} Rd8 {[%emt 0:06:40]} 14. Re1 {[%emt 0:08:57]} Nd4 {[%emt 0:09:23]} 15. f3 {[%emt 0:14:44]} b5 {[%emt 0:07:09]} 16. axb6 {[%emt 0:05:00]} axb6 {[%emt 0:00:15]} 17. Bxd4 {[%emt 0:05:37]} cxd4 {[%emt 0:02:12]} 18. Nxb6 {[%emt 0:03:31]} Rxa1 {[%emt 0:00:10]} 19. Nxc8 {[%emt 0:01:37]} Rxc8 {[%emt 0:01:31]} 20. Qxa1 {[%emt 0:00:06]} Bh6 {[%emt 0:00:33]} 21. Nf1 {[%emt 0:09:03]} Qb7 {[%emt 0:06:08]} 22. b3 {[%emt 0:10:30]} Ra8 {[%emt 0:01:39]} 23. Qb2 {[%emt 0:00:15]} Qa7 {[%emt 0:02:16]} 24. g3 {[%emt 0:02:37]} Bf8 {[%emt 0:04:26]} 25. Qc1 {[%emt 0:02:29]} f6 {[%emt 0:02:05]} 26. Re2 {[%emt 0:02:18]} Bb4 {[%emt 0:02:08]} 27. f4 {[%emt 0:02:28]} Qe7 {[%emt 0:01:36]} 28. Rf2 {[%emt 0:02:07]} Kg7 {[%emt 0:02:00]} 29. Qd1 {[%emt 0:00:45]} Bc3 {[%emt 0:03:21]} 30. Kg2 {[%emt 0:00:20]} Ra1 {[%emt 0:01:37]} 31. Qg4 {[%emt 0:02:40]} h5 {[%emt 0:02:14]} 32. Qc8 {[%emt 0:01:19]} Be1 {[%emt 0:04:42]} 33. Rf3 {[%emt 0:00:09]} c5 {[%emt 0:01:34]} 34. fxe5 {[%emt 0:03:14]} fxe5 {[%emt 0:00:28]} 35. b4 {[%emt 0:00:34]} cxb4 {[%emt 0:02:38]} 36. Qc4 {[%emt 0:01:07]} Ra3 {[%emt 0:01:50]} 37. Kg1 {[%emt 0:00:10]} Ra1 {[%emt 0:01:48]} 38. h4 {[%emt 0:00:42]} Bxg3 {[%emt 0:02:39]} 39. Qc8 {[%emt 0:00:46]} Bxh4 {[%emt 0:00:48]} 40. Kg2 {[%emt 0:00:18]} Rc1 {[%emt 0:03:17]} 41. Qc4 {[%emt 0:00:38]} Re1 {[%emt 0:01:01]} 42. Kh1 {[%emt 0:00:35]} Re2 {[%emt 0:02:11]} 43. Qc8 {[%emt 0:00:12]} Be1 {[%emt 0:01:06]} 44. Nh2 {[%emt 0:00:31]} Bd2 {[%emt 0:00:44]} 45. Rf1 {[%emt 0:00:43]} Bf4 {[%emt 0:01:10]} 46. Nf3 {[%emt 0:00:04]} Re3 {[%emt 0:02:30]} 47. Kg2 {[%emt 0:00:30]} g5 {[%emt 0:01:09]} 48. Ra1 {[%emt 0:00:20]} g4 {[%emt 0:00:58]} 49. Nh4 {[%emt 0:00:06]} Re2+ {[%emt 0:03:13]} 50. Kf1 {[%emt 0:00:07]} Re1+ {[%emt 0:01:18]} 51. Rxe1 {[%emt 0:00:27]} Qxh4 {[%emt 0:00:05]} 52. Qd7+ {[%emt 0:00:28]} Kg6 {[%emt 0:00:40]} 1/2-1/2

[Event "83rd Georgian Championship 2024"]
[Site "Tbilisi"]
[Date "2024.02.04"]
[Round "6.2"]
[White "Jobava, Baadur"]
[Black "Gagunashvili, Merab"]
[Result "1-0"]
[ECO "C44"]
[WhiteElo "2591"]
[BlackElo "2562"]
[Annotator "RC"]
[PlyCount "115"]
[EventDate "2024.01.29"]
[EventCountry "GEO"]
[SourceTitle "playchess.com"]
[Source "ChessBase"]
[SourceQuality "1"]
[TimeControl "5400+30"]

1. e4 {[%emt 0:01:39]} e5 {[%emt 0:00:05]} 2. Nf3 {[%emt 0:00:10]} Nc6 {[%emt 0:00:05]} 3. c3 {[%emt 0:00:20]} d5 {[%emt 0:01:27]} 4. d3 {[%emt 0:00:10]} dxe4 {[%emt 0:01:57]} 5. dxe4 {[%emt 0:00:08]} Qxd1+ {[%emt 0:00:03]} 6. Kxd1 {[%emt 0:00:08]} Nf6 {[%emt 0:01:01]} 7. Nbd2 {[%emt 0:00:54]} Bc5 {[%emt 0:02:52]} 8. Bb5 {[%emt 0:00:31]} Bd7 {[%emt 0:05:55]} 9. Ke2 {[%emt 0:00:15]} a5 {[%emt 0:03:10]} 10. Rd1 {[%emt 0:06:47]} Ne7 {[%emt 0:12:03]} 11. Bxd7+ {[%emt 0:06:30]} Nxd7 {[%emt 0:00:07]} 12. a4 {[%emt 0:00:23]} f6 {[%emt 0:01:57]} 13. Ne1 {[%emt 0:00:11]} Nc8 {[%emt 0:04:42]} 14. Nd3 {[%emt 0:03:40]} Be7 {[%emt 0:01:19]} 15. f3 {[%emt 0:02:00]} Ncb6 {[%emt 0:02:47]} 16. Nf1 {[%emt 0:04:47]} Nc5 {[%emt 0:01:04]} 17. Nxc5 {[%emt 0:00:06]} Bxc5 {[%emt 0:00:04]} 18. Be3 {[%emt 0:00:12]} Bxe3 {[%emt 0:01:43]} 19. Nxe3 {[%emt 0:00:08]} Kf7 {[%emt 0:06:40]} 20. Ra3 {[%emt 0:07:52]} Rhd8 {[%emt 0:02:40]} 21. Rxd8 {[%emt 0:00:08]} Rxd8 {[%emt 0:00:04]} 22. Rb3 {[%emt 0:00:05]} Rb8 {[%emt 0:02:57]} 23. Rb5 {[%emt 0:00:08]} Nxa4 {[%emt 0:00:38]} 24. Rxa5 {[%emt 0:00:08]} Nb6 {[%emt 0:00:22]} 25. c4 {[%emt 0:02:08]} Ke6 {[%emt 0:01:36]} 26. b4 {[%emt 0:00:57]} Nc8 {[%emt 0:05:06]} 27. Kd3 {[%emt 0:01:40]} Ne7 {[%emt 0:04:16]} 28. Nd5 {[%emt 0:01:34]} Kd7 {[%emt 0:18:44]} 29. c5 {[%emt 0:02:34]} Nc6 {[%emt 0:01:41]} 30. Ra2 {[%emt 0:00:08]} Nd4 {[%emt 0:00:24]} 31. f4 {[%emt 0:01:06]} Nc6 {[%emt 0:01:16]} 32. b5 {[%emt 0:00:44]} Ne7 {[%emt 0:00:29]} 33. fxe5 {[%emt 0:02:01]} fxe5 {[%emt 0:00:05]} 34. Kc4 {[%emt 0:00:41]} Ng6 {[%emt 0:03:27]} 35. Ra7 {[%emt 0:02:54]} Kd8 {[%emt 0:05:25]} 36. Nb4 {[%emt 0:13:27]} Ne7 {[%emt 0:00:51]} 37. Nd3 {[%emt 0:01:08]} c6 {[%emt 0:00:55]} 38. Nxe5 {[%emt 0:02:13]} cxb5+ {[%emt 0:00:04]} 39. Kxb5 {[%emt 0:00:10]} Kc7 {[%emt 0:00:04]} 40. Ra3 {[%emt 0:02:03]} Rd8 {[%emt 0:00:59]} 41. Rg3 {[%emt 0:01:30]} g6 {[%emt 0:00:12]} 42. Rh3 {[%emt 0:00:10]} h5 {[%emt 0:00:13]} 43. Rd3 {[%emt 0:00:05]} Rxd3 {[%emt 0:00:25]} 44. Nxd3 {[%emt 0:00:07]} g5 {[%emt 0:00:38]} 45. Ne5 {[%emt 0:03:10]} Ng8 {[%emt 0:00:40]} 46. Kc4 {[%emt 0:00:33]} Nf6 {[%emt 0:00:22]} 47. Kd4 {[%emt 0:00:07]} b6 {[%emt 0:00:35]} 48. cxb6+ {[%emt 0:00:06]} Kxb6 {[%emt 0:00:02]} 49. Nf7 {[%emt 0:00:12]} g4 {[%emt 0:00:09]} 50. e5 {[%emt 0:01:42]} Ne8 {[%emt 0:00:19]} 51. e6 {[%emt 0:00:33]} Kc6 {[%emt 0:00:05]} 52. Ke5 {[%emt 0:00:13]} Nc7 {[%emt 0:00:06]} 53. Nd6 {[%emt 0:00:17]} Nd5 {[%emt 0:00:10]} 54. Nf5 {[%emt 0:00:06]} Nc3 {[%emt 0:00:17]} 55. g3 {[%emt 0:00:25]} Kc7 {[%emt 0:00:27]} 56. Nd6 {[%emt 0:00:45]} Kd8 {[%emt 0:00:08]} 57. Kf6 {[%emt 0:00:04]} Nd5+ {[%emt 0:00:04]} 58. Kf7 {[%emt 0:00:04]} 1-0

[Event "83rd Georgian Championship 2024"]
[Site "Tbilisi"]
[Date "2024.02.04"]
[Round "6.3"]
[White "Paichadze, Luka"]
[Black "Pantsulaia, Levan"]
[Result "1/2-1/2"]
[ECO "B20"]
[WhiteElo "2503"]
[BlackElo "2561"]
[Annotator "RC"]
[PlyCount "20"]
[EventDate "2024.01.29"]
[EventCountry "GEO"]
[SourceTitle "playchess.com"]
[Source "ChessBase"]
[SourceQuality "1"]
[TimeControl "5400+30"]

1. e4 {[%emt 0:00:04]} c5 {[%emt 0:00:06]} 2. b3 {[%emt 0:00:06]} d6 {[%emt 0:00:08]} 3. Bb2 {[%emt 0:00:05]} a6 {[%emt 0:00:05]} 4. Nf3 {[%emt 0:00:07]} Nc6 {[%emt 0:00:20]} 5. c4 {[%emt 0:00:08]} e5 {[%emt 0:00:25]} 6. Be2 {[%emt 0:00:06]} Nf6 {[%emt 0:00:14]} 7. d3 {[%emt 0:00:09]} g6 {[%emt 0:00:06]} 8. O-O {[%emt 1:33:45]} Bg7 9. h3 {[%emt 0:00:00]} O-O {[%emt 0:00:10]} 10. Nbd2 {[%emt 0:00:00]} h6 {[%emt 0:00:15]} 1/2-1/2

[Event "83rd Georgian Championship 2024"]
[Site "Tbilisi"]
[Date "2024.02.04"]
[Round "6.5"]
[White "Tsomaia, Nikoloz"]
[Black "Sanikidze, Tornike"]
[Result "1-0"]
[ECO "C00"]
[WhiteElo "2231"]
[BlackElo "2449"]
[Annotator "RC"]
[PlyCount "81"]
[EventDate "2024.01.29"]
[EventCountry "GEO"]
[SourceTitle "playchess.com"]
[Source "ChessBase"]
[SourceQuality "1"]
[TimeControl "5400+30"]

1. e4 {[%emt 0:00:41]} e6 {[%emt 0:00:18]} 2. d3 {[%emt 0:00:30]} d5 {[%emt 0:00:13]} 3. Nd2 {[%emt 0:00:08]} Nf6 {[%emt 0:00:48]} 4. Ngf3 {[%emt 0:00:08]} a5 {[%emt 0:00:21]} 5. g3 {[%emt 0:00:36]} dxe4 {[%emt 0:01:38]} 6. dxe4 {[%emt 0:00:12]} Nc6 {[%emt 0:00:06]} 7. Bb5 {[%emt 0:06:12]} Bc5 {[%emt 0:01:21]} 8. Qe2 {[%emt 0:03:46]} Ng4 {[%emt 0:18:39]} 9. h3 {[%emt 0:12:08]} Nxf2 {[%emt 0:04:31]} 10. Rh2 {[%emt 0:00:35]} O-O {[%emt 0:00:22]} 11. Rxf2 {[%emt 0:21:21]} Bxf2+ {[%emt 0:00:19]} 12. Kxf2 {[%emt 0:00:53]} f5 {[%emt 0:30:55]} 13. Kg2 {[%emt 0:03:47]} a4 {[%emt 0:14:02]} 14. c3 {[%emt 0:05:30]} e5 {[%emt 0:13:20]} 15. Bd3 {[%emt 0:20:20]} f4 {[%emt 0:00:13]} 16. Nf1 {[%emt 0:05:06]} Kh8 {[%emt 0:02:50]} 17. Bd2 {[%emt 0:00:21]} Qf6 {[%emt 0:00:40]} 18. N1h2 {[%emt 0:07:42]} Qg6 {[%emt 0:03:00]} 19. g4 {[%emt 0:00:35]} Be6 {[%emt 0:00:17]} 20. Bb5 {[%emt 0:00:30]} Qf6 {[%emt 0:00:33]} 21. Be1 {[%emt 0:00:21]} h6 {[%emt 0:01:47]} 22. Bxc6 {[%emt 0:04:32]} bxc6 {[%emt 0:00:04]} 23. c4 {[%emt 0:00:09]} Rfe8 {[%emt 0:02:40]} 24. Bc3 {[%emt 0:00:02]} Bg8 {[%emt 0:00:05]} 25. g5 {[%emt 0:00:10]} Qg6 {[%emt 0:02:26]} 26. Ng4 {[%emt 0:02:46]} Bh7 {[%emt 0:00:26]} 27. Re1 {[%emt 0:00:20]} hxg5 {[%emt 0:00:20]} 28. Ngxe5 {[%emt 0:05:09]} Qh5 29. Rg1 {[%emt 0:00:00]} Re6 {[%emt 0:02:04]} 30. Kf2 {[%emt 0:00:00]} Rf8 {[%emt 0:00:40]} 31. Rxg5 {[%emt 0:00:00]} Qxh3 {[%emt 0:00:12]} 32. Rg2 {[%emt 0:00:00]} Rff6 {[%emt 0:00:46]} 33. c5 {[%emt 0:00:00]} Qh5 {[%emt 0:00:15]} 34. Qd3 {[%emt 0:00:00]} Qe8 {[%emt 0:00:45]} 35. Ng5 {[%emt 0:00:00]} Re7 {[%emt 0:00:32]} 36. Rh2 {[%emt 0:00:00]} Rh6 {[%emt 0:00:14]} 37. Rxh6 {[%emt 0:01:21]} gxh6 {[%emt 0:00:03]} 38. Ng4+ {[%emt 0:00:53]} Rg7 {[%emt 0:00:13]} 39. Bxg7+ {[%emt 0:01:22]} Kxg7 {[%emt 0:00:01]} 40. Qd4+ {[%emt 0:00:14]} Kg6 {[%emt 0:00:02]} 41. Nxh7 {[%emt 0:00:47]} 1-0

[Event "83rd Georgian Championship 2024"]
[Site "Tbilisi"]
[Date "2024.02.05"]
[Round "7.1"]
[White "Sanikidze, Tornike"]
[Black "Kacharava, Nikolozi"]
[Result "0-1"]
[ECO "D30"]
[WhiteElo "2449"]
[BlackElo "2523"]
[Annotator "TA"]
[PlyCount "114"]
[EventDate "2024.01.29"]
[EventType "tourn"]
[EventCountry "GEO"]
[SourceTitle "playchess.com"]
[Source "ChessBase"]
[SourceQuality "1"]
[TimeControl "5400+30"]

{[%evp 28,114,0,0,8,0,14,15,56,52,72,54,56,56,64,63,61,47,63,0,0,0,0,0,0,0,0,0,0,0,0,0,0,0,0,-16,-20,-13,-23,-104,-98,-98,-111,-105,-93,-86,-45,-93,0,-81,-47,-44,-66,-85,-77,-76,-78,-85,-85,-112,-104,-159,-116,-106,-109,-116,-116,-178,-170,-170,-131,-143,-130,-151,0,-128,0,-121,-127,-131,-122,-125,-147,-29987,-29988,-29988,-29989,-29991,0]} 1. d4 {[%emt 0:01:08]} d5 {[%emt 0:00:15]} 2. c4 {[%emt 0:00:08]} e6 {[%emt 0:00:26]} 3. Nf3 {[%emt 0:00:14]} Nf6 {[%emt 0:00:26]} 4. e3 {[%emt 0:02:58]} Be7 {[%emt 0:01:43]} 5. cxd5 {[%emt 0:10:01]} exd5 {[%emt 0:00:45]} 6. g3 {[%emt 0:00:05] D30: Queen's Gambit Declined: Systems without Nc3.} O-O {[%emt 0:02:39]} 7. Bg2 {[%emt 0:00:04]} Nbd7 {[%emt 0:07:44]} 8. O-O {[%emt 0:00:48]} c6 {[%emt 0:01:07]} 9. b3 {[%emt 0:00:23]} Re8 {[%emt 0:03:05]} 10. Ba3 $146 {[%emt 0:00:29]} ({Predecessor:} 10. Bb2 Nf8 11. Ne5 h5 12. Bf3 g6 13. Ba3 Bf5 14. Bxe7 Qxe7 15. Nc3 N8h7 16. h4 {0-1 Chupakhin,A (1668)-Kornev,S (1613) Voronezh Rating op 03-A 2014 (5)}) 10... Bxa3 {[%emt 0:02:42]} 11. Nxa3 {[%emt 0:00:14]} Ne4 {[%emt 0:04:46]} 12. Nb1 {[%emt 0:09:32]} Nf8 {[%emt 0:03:34]} 13. Ne5 {[%emt 0:04:24]} Nd6 {[%emt 0:03:46]} 14. Nc3 {[%emt 0:03:12]} f6 {[%emt 0:03:42]} 15. Nd3 {[%emt 0:00:34]} Bf5 {[%emt 0:00:11]} 16. Re1 {[%emt 0:03:00]} Bxd3 {[%emt 0:05:16]} 17. Qxd3 {[%emt 0:00:18]} f5 {[%emt 0:00:47]} 18. b4 $1 {[%emt 0:06:31]} Nd7 {[%emt 0:06:07]} 19. b5 {[%emt 0:02:53]} Nb6 {[%emt 0:00:37]} 20. bxc6 {[%emt 0:20:57]} bxc6 {[%emt 0:00:07]} 21. Rac1 {[%emt 0:00:10]} Rb8 {[%emt 0:11:36]} 22. Re2 {[%emt 0:07:56]} Kh8 {[%emt 0:02:37]} 23. f3 {[%emt 0:07:16]} (23. Nb1 $14) 23... Qg5 {[%emt 0:01:04]} 24. Rce1 {[%emt 0:01:44]} Nbc4 {[%emt 0:13:55]} 25. e4 {[%emt 0:00:35]} f4 {[%emt 0:00:29]} 26. gxf4 {[%emt 0:14:25]} Qxf4 {[%emt 0:06:30]} 27. exd5 {[%emt 0:00:05]} Rxe2 {[%emt 0:01:26]} 28. Nxe2 {[%emt 0:00:09]} Qh4 {[%emt 0:00:19]} 29. Rb1 {[%emt 0:00:03]} Rxb1+ {[%emt 0:01:09]} 30. Qxb1 {[%emt 0:00:04]} Qe7 {[%emt 0:00:02]} 31. Nf4 {[%emt 0:05:07]} Qe3+ {[%emt 0:02:31]} 32. Kh1 {[%emt 0:00:01]} Nb6 {[%emt 0:00:08]} (32... Qxf4 33. Qb8+ (33. dxc6 $2 Ne8 $19) (33. dxc6 $2 Ne8 $19)) 33. Nd3 {[%emt 0:00:39]} (33. Nh3 $1 $11 {keeps the balance.} cxd5 (33... Nxd5 34. Qb8+ Ne8 35. Ng1 $14) 34. Qb4) 33... cxd5 $17 {[%emt 0:00:23]} (33... Nxd5 $6 34. Qb8+ Ne8 35. Qe5 $11) 34. Ne5 {[%emt 0:00:48]} Qxd4 {[%emt 0:01:14]} 35. Qe1 {[%emt 0:00:01]} Qf4 {[%emt 0:02:23]} 36. Nd3 {[%emt 0:00:16]} Qf5 {[%emt 0:01:05]} (36... Qf6 {simplifies} 37. Qe5 Qxe5 38. Nxe5 a5) 37. Qe7 $1 {[%emt 0:01:05]} h6 {[%emt 0:00:32]} ({Black should try} 37... h5 $17 38. Qxd6 Qxd3 39. Qf8+ Kh7) 38. Qxa7 {[%emt 0:00:40]} (38. Qxd6 $11 {remains equal.} Qxd3 39. Qf8+ Kh7 40. Bh3 Qb1+ 41. Kg2 Qc2+ (41... Qxa2+ 42. Kg3 $11) 42. Kf1 Qc1+ (42... Qxa2 43. Bf5+ g6 44. Qf7+ Kh8 45. Qf6+ Kg8 46. Be6+ Kh7 47. Qf7+ Kh8 48. Qg8#) 43. Kg2 Qb2+ 44. Kg3) 38... Qxd3 {[%emt 0:01:36]} 39. Qxb6 {[%emt 0:00:01]} d4 {[%emt 0:01:02]} 40. h4 {[%emt 0:00:36]} Nf5 {[%emt 0:02:03]} 41. Qg6 {[%emt 0:00:54]} Qb1+ $1 {[%emt 0:00:17]} 42. Kh2 {[%emt 0:00:01]} Qb8+ $1 {[%emt 0:00:17]} 43. Kh3 {[%emt 0:00:59]} Qc8 {[%emt 0:02:12]} 44. f4 {[%emt 0:00:29] [#]} d3 $1 {[%emt 0:04:45]} 45. Be4 {[%emt 0:00:20] [#]} Ne7+ $1 {[%emt 0:02:50]} 46. Qg4 {[%emt 0:00:02]} Qc4 {[%emt 0:00:09]} 47. f5 {[%emt 0:01:09]} (47. Bf3 $17) 47... d2 $1 $19 {[%emt 0:00:14]} (47... Qxa2 48. Bxd3 (48. f6 gxf6 49. Bxd3 Qd5 $15) 48... Ng8 49. Qe2 $15) 48. Bf3 {[%emt 0:00:03]} Qf1+ {[%emt 0:00:54]} 49. Kh2 {[%emt 0:00:47]} Qf2+ {[%emt 0:00:22]} 50. Kh3 {[%emt 0:00:03]} Qf1+ {[%emt 0:00:21]} 51. Kh2 $1 {[%emt 0:00:02]} Qf2+ {[%emt 0:00:04]} 52. Kh3 {[%emt 0:00:19]} Nd5 {[%emt 0:00:17]} 53. f6 {[%emt 0:01:11]} Nxf6 {[%emt 0:01:19]} 54. Qc8+ {[%emt 0:00:55]} Ng8 {[%emt 0:00:03]} 55. Bd5 $2 {[%emt 0:00:40][%mdl 8192]} (55. Qg4 $17) 55... Qe3+ {[%emt 0:00:36]} (55... d1=B 56. Qxg8#) 56. Kg2 {[%emt 0:00:25]} Qe2+ {[%emt 0:00:05]} ({And not} 56... d1=B 57. Qxg8#) 57. Kh3 {[%emt 0:01:07]} Qf1+ $2 {[%emt 0:02:26]} ({Inferior is} 57... d1=B 58. Qxg8#) (57... Qd3+ {mates} 58. Kh2 Qxd5 (58... d1=B 59. Qxg8#) 59. Qg4 d1=Q (59... d1=B $2 60. Qf4 $19) 60. Qxd1 Qxd1 61. Kg3 Qf1 62. a4 Nf6 63. Kh2 Ne4 64. h5 Qf2+ 65. Kh3 Qg3#) 0-1